bitfinex/quotes_SOLUSD_20250831
["timestamp","ask_amount","ask_price","bid_price","bid_amount"]
[1756669347058,37.46,205.22,205.2,8.17324937]
[1756669348119,0.06,205.22,205.2,8.17324937]
[1756669348320,37.46,205.22,205.2,7.46324937]
[1756669348542,37.46,205.22,205.19,4.90353184]
[1756669348728,37.46,205.22,205.2,2.59007865]
[1756669350944,37.46,205.22,205.19,9.65941362]
[1756669352142,37.46,205.22,205.19,4.90353184]
[1756669352338,37.46,205.22,205.19,8.94941362]
[1756669352546,0.06,205.22,205.19,8.94941362]
[1756669352760,37.46,205.22,205.19,8.94941362]
[1756669352921,38.15,205.22,205.19,8.94941362]
[1756669353240,38.17,205.22,205.19,8.94941362]
[1756669354526,0.75,205.22,205.19,8.94941362]
[1756669354726,38.15,205.22,205.19,8.94941362]
[1756669355755,0.06,205.22,205.19,9.64941362]
[1756669355932,37.46,205.22,205.19,9.64941362]
[1756669356130,37.46,205.22,205.2,4.04588178]
[1756669356457,37.46,205.22,205.2,8.91910166]
[1756669357546,0.06,205.22,205.21,18.34147579]
[1756669357754,0.06,205.22,205.21,32.99027179]
[1756669358360,0.06,205.22,205.21,58.99027179]
[1756669359435,0.06,205.22,205.21,63.86332865]
[1756669361661,0.06,205.22,205.21,37.86332865]
[1756669363863,0.06,205.22,205.21,75.28332865]
[1756669365660,0.06,205.25,205.24,39.59559401]
[1756669365833,0.06,205.25,205.24,81.10147579]
[1756669366158,0.06,205.27,205.25,13.59559401]
[1756669366343,0.06,205.27,205.26,17.64147579]
[1756669366537,0.06,205.27,205.26,18.34147579]
[1756669367339,0.06,205.27,205.26,23.21334561]
[1756669367759,1e-08,205.27,205.26,23.21334561]
[1756669368211,1e-08,205.27,205.26,25.16546961]
[1756669370544,1e-08,205.27,205.26,62.60546961]
[1756669376579,1e-08,205.27,205.26,62.63546961]
[1756669378670,1e-08,205.27,205.26,58.58958783]
[1756669378873,1e-08,205.27,205.26,62.63546961]
[1756669379276,1e-08,205.27,205.26,58.58958783]
[1756669379584,1e-08,205.27,205.26,62.63546961]
[1756669379973,1e-08,205.27,205.26,57.88958783]
[1756669380154,1e-08,205.27,205.26,61.93546961]
[1756669381270,1e-08,205.27,205.26,62.63546961]
[1756669381977,1e-08,205.27,205.26,61.17590393]
[1756669382678,1e-08,205.27,205.26,60.47590393]
[1756669390390,1e-08,205.27,205.26,60.47590393]
[1756669399320,1e-08,205.27,205.26,57.88958783]
[1756669399620,1e-08,205.27,205.26,60.47590393]
[1756669399791,1e-08,205.27,205.26,20.44958783]
[1756669399993,1e-08,205.27,205.26,23.03590393]
[1756669400197,1e-08,205.27,205.26,60.41590393]
[1756669400520,0.66000001,205.27,205.26,60.41590393]
[1756669403529,1e-08,205.27,205.26,60.41590393]
[1756669408328,1e-08,205.27,205.26,60.41590393]
[1756669415330,1e-08,205.27,205.26,61.07590393]
[1756669415509,1e-08,205.27,205.26,60.41590393]
[1756669427332,1e-08,205.27,205.26,23.03590393]
[1756669427523,1e-08,205.27,205.26,60.39590393]
[1756669427720,0.68000001,205.27,205.26,20.44958783]
[1756669429839,0.68000001,205.27,205.26,23.03590393]
[1756669435522,0.68000001,205.27,205.26,1.982124]
[1756669435728,0.68000001,205.27,205.26,0.03]
[1756669440429,0.68000001,205.27,205.26,2.6163161]
[1756669441030,1e-08,205.27,205.26,2.6163161]
[1756669441237,0.68000001,205.27,205.26,2.6163161]
[1756669441748,1e-08,205.27,205.26,16.21191011]
[1756669441948,1e-08,205.27,205.26,21.08377993]
[1756669442136,1e-08,205.27,205.26,23.72628593]
[1756669442337,1e-08,205.27,205.26,23.03628593]
[1756669445333,1e-08,205.27,205.26,61.08628593]
[1756669453455,1e-08,205.27,205.26,60.39628593]
[1756669454895,1e-08,205.27,205.26,57.80996983]
[1756669454896,0.71000001,205.27,205.26,57.80996983]
[1756669455059,0.71000001,205.27,205.26,60.39628593]
[1756669455810,0.71000001,205.27,205.26,57.80996983]
[1756669455968,0.71000001,205.27,205.26,60.39628593]
[1756669461522,1e-08,205.27,205.26,60.39628593]
[1756669461695,0.71000001,205.27,205.26,60.39628593]
[1756669465936,1e-08,205.27,205.26,60.39628593]
[1756669468909,1e-08,205.27,205.26,61.08628593]
[1756669469536,1e-08,205.27,205.26,60.39628593]
[1756669470016,1e-08,205.27,205.26,61.08628593]
[1756669470550,1e-08,205.27,205.26,57.80996983]
[1756669470840,0.71000001,205.27,205.26,60.39628593]
[1756669472838,1e-08,205.27,205.26,60.39628593]
[1756669476423,0.69000001,205.27,205.26,86.39628593]
[1756669476745,1e-08,205.27,205.26,86.39628593]
[1756669476941,0.69000001,205.27,205.26,86.39628593]
[1756669478833,1e-08,205.27,205.26,86.39628593]
[1756669481228,0.69000001,205.27,205.26,86.39628593]
[1756669482820,1e-08,205.27,205.26,86.39628593]
[1756669484234,0.69000001,205.27,205.26,86.39628593]
[1756669485246,0.69000001,205.27,205.26,49.03628593]
[1756669485424,0.69000001,205.27,205.26,15.57810001]
[1756669485747,0.69000001,205.27,205.26,20.44996983]
[1756669486550,0.69000001,205.27,205.26,23.03628593]
[1756669488248,1e-08,205.27,205.26,23.03628593]
[1756669488429,0.69000001,205.27,205.26,23.03628593]
[1756669492448,0.69000001,205.27,205.26,18.16441611]
[1756669493031,0.69000001,205.27,205.26,0.03]
[1756669505359,8.14794859,205.27,205.26,0.03]
[1756669509148,45.48794859,205.27,205.26,0.03]
[1756669511650,26.0,205.24,205.23,0.03]
[1756669511854,28.5863161,205.24,205.23,0.03]
[1756669512054,29.2563161,205.24,205.23,0.03]
[1756669512263,26.0,205.23,205.21,0.03]
[1756669512567,39.9263161,205.22,205.21,0.03]
[1756669512777,3.2563161,205.22,205.21,0.03]
[1756669512963,50.9415805,205.22,205.21,0.03]
[1756669513539,55.81439991,205.22,205.21,0.03]
[1756669513765,26.0,205.2,205.19,0.03]
[1756669514070,38.9315805,205.2,205.19,0.03]
[1756669514244,39.6015805,205.2,205.19,0.03]
[1756669514445,41.5558985,205.2,205.19,0.03]
[1756669514681,78.8958985,205.2,205.19,0.03]
[1756669515144,41.5558985,205.2,205.19,0.03]
[1756669515551,83.76919284,205.2,205.19,0.03]
[1756669516871,46.42919284,205.2,205.19,0.03]
[1756669517054,83.78919284,205.2,205.19,0.03]
[1756669517943,46.42919284,205.2,205.19,0.03]
[1756669518145,83.78919284,205.2,205.19,0.03]
[1756669521572,46.42919284,205.2,205.19,0.03]
[1756669521775,83.78919284,205.2,205.19,0.03]
[1756669521971,46.42919284,205.2,205.19,0.03]
[1756669522465,83.78919284,205.2,205.19,0.03]
[1756669522672,33.49761234,205.2,205.19,0.03]
[1756669522867,83.78919284,205.2,205.19,0.03]
[1756669524377,46.42919284,205.2,205.19,0.03]
[1756669524553,83.78919284,205.2,205.19,0.03]
[1756669527885,83.78919284,205.2,205.17,0.03]
[1756669528074,2.5863161,205.18,205.17,0.03]
[1756669528256,44.82008547,205.18,205.17,0.03]
[1756669528455,45.49008547,205.18,205.17,0.03]
[1756669531467,45.49008547,205.18,205.14,0.03]
[1756669531686,136.9863161,205.17,205.14,0.03]
[1756669532060,3.2863161,205.17,205.14,0.03]
[1756669532483,10.11511902,205.17,205.14,0.03]
[1756669533965,11.5802849,205.17,205.14,0.03]
[1756669535288,7.52880292,205.17,205.14,0.03]
[1756669535478,11.5802849,205.17,205.14,0.03]
[1756669536082,7.52880292,205.17,205.14,0.03]
[1756669536394,11.5802849,205.17,205.14,0.03]
[1756669536561,26.0,205.15,205.14,0.03]
[1756669536757,67.41148198,205.15,205.14,0.03]
[1756669536983,68.11148198,205.15,205.14,0.03]
[1756669537205,70.06646798,205.15,205.14,0.03]
[1756669537392,74.94095006,205.15,205.14,0.03]
[1756669544615,37.58095006,205.15,205.14,0.03]
[1756669544786,74.94095006,205.15,205.14,0.03]
[1756669547610,72.98596406,205.15,205.14,0.03]
[1756669547795,74.94095106,205.15,205.14,0.03]
[1756669555990,73.48294253,205.15,205.14,0.03]
[1756669560622,88.13294253,205.15,205.14,0.03]
[1756669560922,73.48294253,205.15,205.14,0.03]
[1756669561803,72.78294253,205.15,205.14,0.7]
[1756669562410,70.82795553,205.15,205.14,0.7]
[1756669562921,70.82795553,205.15,205.14,0.03]
[1756669564600,71.49795553,205.15,205.14,0.03]
[1756669565930,34.13795553,205.15,205.14,0.03]
[1756669566122,71.49795553,205.15,205.14,0.03]
[1756669569329,75.58348382,205.15,205.14,0.03]
[1756669571138,90.23348382,205.15,205.14,0.03]
[1756669571438,75.58348382,205.15,205.14,0.03]
[1756669572236,37.55348382,205.15,205.14,0.03]
[1756669572530,74.91348382,205.15,205.14,0.03]
[1756669573125,75.58348382,205.15,205.14,0.03]
[1756669573324,71.49795553,205.15,205.14,0.03]
[1756669573847,70.82795553,205.15,205.14,0.03]
[1756669574017,71.49795553,205.15,205.14,0.03]
[1756669574418,34.13795553,205.15,205.14,0.03]
[1756669574635,70.82795553,205.15,205.14,0.03]
[1756669577337,33.46795553,205.15,205.14,0.03]
[1756669577552,70.82795553,205.15,205.14,0.03]
[1756669578651,33.46795553,205.15,205.14,0.03]
[1756669578826,70.82795553,205.15,205.14,0.03]
[1756669579749,33.46795553,205.15,205.14,0.03]
[1756669579930,70.82795553,205.15,205.14,0.03]
[1756669580843,71.49795553,205.15,205.14,0.03]
[1756669581927,68.90448208,205.15,205.14,0.03]
[1756669582259,71.49795553,205.15,205.14,0.03]
[1756669585153,34.13795553,205.15,205.14,0.03]
[1756669585451,71.49795553,205.15,205.14,0.03]
[1756669589231,70.82795553,205.15,205.14,0.03]
[1756669589863,30.87448208,205.15,205.14,0.03]
[1756669590150,48.91753067,205.15,205.14,0.69]
[1756669591759,6.74304859,205.16,205.14,0.69]
[1756669591944,39.95347345,205.15,205.14,0.69]
[1756669594267,44.82795553,205.15,205.14,0.69]
[1756669594452,0.06,205.16,205.14,0.69]
[1756669594758,37.36,205.15,205.14,0.69]
[1756669594948,2.65347345,205.16,205.14,0.69]
[1756669595155,37.36,205.15,205.14,0.69]
[1756669602439,39.95347345,205.15,205.14,0.03]
[1756669602646,45.48795553,205.15,205.14,0.03]
[1756669607674,49.57753067,205.15,205.14,0.03]
[1756669609382,49.57753067,205.15,205.14,1e-08]
[1756669609383,45.48795553,205.15,205.14,1e-08]
[1756669610857,45.48795553,205.15,205.11,0.03]
[1756669610858,26.0,205.12,205.11,0.03]
[1756669611062,80.3889814,205.12,205.11,0.03]
[1756669611271,81.0489814,205.12,205.11,0.03]
[1756669611862,81.0489814,205.12,205.1,0.03]
[1756669611863,76.96736725,205.12,205.1,0.03]
[1756669612061,17.04816849,205.11,205.1,0.03]
[1756669612263,21.92360118,205.11,205.1,0.03]
[1756669612464,12.20970738,205.11,205.1,0.03]
[1756669612984,22.58360118,205.11,205.1,0.03]
[1756669613370,8.12890614,205.11,205.1,0.03]
[1756669613878,12.20970738,205.11,205.1,1e-08]
[1756669614085,8.12890614,205.11,205.1,1e-08]
[1756669614264,18.50279994,205.11,205.1,1e-08]
[1756669614463,22.58166326,205.11,205.1,1e-08]
[1756669614787,12.20776946,205.11,205.1,1e-08]
[1756669614996,22.58166326,205.11,205.09,1e-08]
[1756669615154,54.40623057,205.1,205.09,1e-08]
[1756669615560,55.06623057,205.1,205.09,1e-08]
[1756669615977,50.2070003,205.1,205.09,1e-08]
[1756669616488,55.0826707,205.1,205.08,1e-08]
[1756669616689,4.05406849,205.09,205.08,1e-08]
[1756669617189,4.71406849,205.09,205.08,1e-08]
[1756669618167,0.66,205.09,205.08,1e-08]
[1756669618371,42.23590813,205.09,205.08,0.66000001]
[1756669619470,42.23590813,205.09,205.08,1e-08]
[1756669621094,165.27571842,205.1,205.08,4.0540685]
[1756669621295,165.27571842,205.1,205.08,4.7140685]
[1756669621296,37.36,205.09,205.08,4.7140685]
[1756669621485,37.36,205.09,205.08,1e-08]
[1756669621892,37.36,205.09,205.08,4.0540685]
[1756669622295,165.27571842,205.1,205.08,4.0540685]
[1756669622483,37.36,205.09,205.08,0.71000001]
[1756669622682,37.36,205.09,205.08,1e-08]
[1756669623192,37.36,205.09,205.08,0.71000001]
[1756669623399,37.36,205.09,205.08,1e-08]
[1756669624308,42.23590813,205.09,205.08,1e-08]
[1756669625414,42.90590813,205.09,205.08,1e-08]
[1756669625786,46.95997662,205.09,205.08,1e-08]
[1756669628294,9.65997662,205.09,205.08,1e-08]
[1756669628504,47.01997662,205.09,205.08,1e-08]
[1756669628915,42.96590813,205.09,205.08,1e-08]
[1756669630296,47.01997662,205.09,205.08,1e-08]
[1756669633414,42.96590813,205.09,205.08,1e-08]
[1756669633592,47.01997662,205.09,205.08,1e-08]
[1756669634001,42.96590813,205.09,205.08,1e-08]
[1756669634226,47.01997662,205.09,205.08,1e-08]
[1756669635806,5.60590813,205.09,205.08,1e-08]
[1756669636005,42.96590813,205.09,205.08,1e-08]
[1756669637721,47.01997662,205.09,205.08,1e-08]
[1756669637926,9.65997662,205.09,205.08,1e-08]
[1756669638125,47.01997662,205.09,205.08,1e-08]
[1756669638432,9.65997662,205.09,205.08,1e-08]
[1756669638600,47.01997662,205.09,205.08,1e-08]
[1756669639726,51.09883994,205.09,205.08,1e-08]
[1756669640225,47.01997662,205.09,205.08,1e-08]
[1756669640424,51.09883994,205.09,205.08,1e-08]
[1756669641123,47.01997662,205.09,205.08,1e-08]
[1756669641320,51.09883994,205.09,205.08,1e-08]
[1756669642127,47.01997662,205.09,205.08,1e-08]
[1756669642345,51.09883994,205.09,205.08,1e-08]
[1756669645929,47.04477145,205.09,205.08,1e-08]
[1756669646229,47.01997662,205.09,205.08,1e-08]
[1756669646433,51.09883994,205.09,205.08,1e-08]
[1756669647005,9.01477145,205.09,205.08,1e-08]
[1756669647207,68.29590813,205.09,205.08,0.71000001]
[1756669647404,72.34997662,205.09,205.08,1e-08]
[1756669648335,0.06,205.09,205.08,0.71000001]
[1756669648508,42.29590813,205.09,205.08,0.71000001]
[1756669651227,0.06,205.09,205.08,0.71000001]
[1756669651416,63.42,205.09,205.08,0.71000001]
[1756669654045,37.42,205.09,205.08,0.71000001]
[1756669655819,0.06,205.09,205.08,0.71000001]
[1756669656043,37.42,205.09,205.08,0.71000001]
[1756669657559,42.29590813,205.09,205.08,0.71000001]
[1756669659060,37.42,205.09,205.08,0.71000001]
[1756669659264,37.42,205.09,205.08,1e-08]
[1756669661059,37.42,205.09,205.08,14.31559402]
[1756669661364,37.42,205.09,205.08,18.36966251]
[1756669663461,0.06,205.09,205.08,18.36966251]
[1756669663651,37.42,205.09,205.08,18.36966251]
[1756669669170,0.06,205.09,205.08,18.36966251]
[1756669669390,37.42,205.09,205.08,18.36966251]
[1756669673674,37.42,205.09,205.08,17.64966251]
[1756669673990,37.42,205.09,205.08,16.18822128]
[1756669674159,38.06,205.09,205.08,1e-08]
[1756669676284,0.72,205.09,205.08,1e-08]
[1756669676463,38.06,205.09,205.08,1e-08]
[1756669679861,37.4,205.09,205.08,1e-08]
[1756669681968,37.4,205.09,205.08,4.05154679]
[1756669682284,37.4,205.09,205.08,17.6471408]
[1756669682462,37.4,205.09,205.08,13.59559402]
[1756669682884,37.4,205.09,205.08,17.6471408]
[1756669692298,38.06,205.09,205.08,17.6471408]
[1756669692495,38.06,205.09,205.08,13.59559402]
[1756669692684,38.06,205.09,205.08,1e-08]
[1756669697201,42.93590813,205.09,205.08,1e-08]
[1756669697577,37.4,205.09,205.08,2.59286973]
[1756669697777,0.06,205.09,205.08,2.59286973]
[1756669697978,37.4,205.09,205.08,2.59286973]
[1756669698179,37.4,205.09,205.08,16.18846374]
[1756669699300,37.4,205.09,205.08,13.59559402]
[1756669699499,37.4,205.09,205.08,16.18846374]
[1756669701112,38.06,205.09,205.08,16.18846374]
[1756669702004,37.4,205.09,205.08,16.18846374]
[1756669704611,0.06,205.09,205.08,16.18846374]
[1756669704788,37.4,205.09,205.08,21.78460963]
[1756669704982,37.4,205.09,205.08,16.90846374]
[1756669705815,37.4,205.09,205.08,31.56727974]
[1756669706110,37.4,205.09,205.08,30.84727974]
[1756669711704,38.06,205.09,205.08,28.25441002]
[1756669712027,38.06,205.09,205.08,14.65881601]
[1756669712028,42.93590813,205.09,205.08,14.65881601]
[1756669712206,42.93590813,205.09,205.08,1e-08]
[1756669714219,45.52877785,205.09,205.08,1e-08]
[1756669714632,42.93590813,205.09,205.08,1e-08]
[1756669714803,45.52877785,205.09,205.08,1e-08]
[1756669721319,42.93590813,205.09,205.08,1e-08]
[1756669721526,0.06,205.09,205.08,1e-08]
[1756669721840,0.72,205.09,205.08,1e-08]
[1756669722014,37.4,205.09,205.08,1e-08]
[1756669723338,38.06,205.09,205.08,1e-08]
[1756669725037,42.93590813,205.09,205.08,1e-08]
[1756669733238,37.4,205.09,205.08,1e-08]
[1756669733414,0.06,205.09,205.08,1e-08]
[1756669733615,37.4,205.09,205.08,1e-08]
[1756669740051,38.06,205.09,205.08,1e-08]
[1756669743946,42.93590813,205.09,205.08,1e-08]
[1756669744147,45.52877785,205.09,205.08,1e-08]
[1756669744744,42.93590813,205.09,205.08,1e-08]
[1756669745455,0.06,205.09,205.08,16.87846374]
[1756669745633,37.4,205.09,205.08,16.87846374]
[1756669745835,0.06,205.09,205.08,16.87846374]
[1756669746034,37.4,205.09,205.08,16.87846374]
[1756669746966,0.06,205.09,205.08,16.87846374]
[1756669747133,37.4,205.09,205.08,16.87846374]
[1756669747434,0.06,205.09,205.08,21.75460963]
[1756669747628,0.06,205.09,205.08,36.41342563]
[1756669756861,0.06,205.09,205.08,31.53727974]
[1756669757069,0.06,205.09,205.08,30.84727974]
[1756669757941,0.06,205.09,205.08,28.25441002]
[1756669758269,0.74,205.09,205.08,13.59559402]
[1756669760171,0.06,205.09,205.08,16.18846374]
[1756669760853,0.06,205.09,205.08,23.65634174]
[1756669765176,37.38,205.09,205.08,23.65634174]
[1756669765671,37.38,205.09,205.08,16.18846374]
[1756669766358,37.38,205.09,205.08,21.06460963]
[1756669767475,37.38,205.09,205.08,16.18846374]
[1756669773276,37.38,205.09,205.08,21.06460963]
[1756669773777,0.06,205.09,205.08,21.06460963]
[1756669782983,0.06,205.09,205.08,18.47173991]
[1756669783190,0.06,205.09,205.08,21.06460963]
[1756669793174,0.06,205.09,205.08,35.72270863]
[1756669793492,0.06,205.09,205.08,21.06460963]
[1756669802607,0.74,205.09,205.08,21.06460963]
[1756669802983,0.74,205.09,205.08,16.18846374]
[1756669803683,0.74,205.09,205.08,21.06460963]
[1756669804410,0.06,205.09,205.08,21.06460963]
[1756669804592,0.74,205.09,205.08,21.06460963]
[1756669808906,0.74,205.09,205.08,16.18846374]
[1756669809104,0.06,205.09,205.08,16.18846374]
[1756669809491,0.06,205.09,205.08,21.06460963]
[1756669809808,0.74,205.09,205.08,21.06460963]
[1756669810303,0.74,205.09,205.08,16.18846374]
[1756669810505,0.74,205.09,205.08,13.59559402]
[1756669821906,0.06,205.09,205.08,16.18846374]
[1756669822821,0.06,205.09,205.08,13.59559402]
[1756669823021,0.06,205.09,205.08,16.18846374]
[1756669823221,0.06,205.09,205.08,13.59559402]
[1756669823410,0.06,205.09,205.08,16.18846374]
[1756669826019,0.06,205.09,205.08,30.84799574]
[1756669829826,0.06,205.09,205.08,31.50799574]
[1756669830526,0.06,205.09,205.08,30.84799574]
[1756669831426,0.06,205.09,205.08,35.72414163]
[1756669832232,0.06,205.09,205.08,30.84799574]
[1756669835136,0.06,205.09,205.08,36.42414163]
[1756669835511,0.06,205.09,205.08,35.72414163]
[1756669836331,0.06,205.09,205.08,36.42414163]
[1756669837332,0.06,205.09,205.08,62.42414163]
[1756669842742,0.06,205.09,205.08,59.83127191]
[1756669842945,0.06,205.09,205.08,62.42414163]
[1756669848527,0.06,205.09,205.08,61.72414163]
[1756669851045,0.06,205.09,205.08,62.42414163]
[1756669854651,0.06,205.09,205.08,61.72414163]
[1756669862580,0.06,205.09,205.08,62.43414163]
[1756669862866,0.06,205.09,205.08,47.29323509]
[1756669863245,0.06,205.09,205.08,36.92175621]
[1756669863441,0.06,205.09,205.08,47.29323509]
[1756669866067,0.06,205.12,205.11,39.59559401]
[1756669866380,0.06,205.12,205.11,84.83143968]
[1756669866557,0.06,205.12,205.11,85.54143968]
[1756669866757,0.06,205.12,205.11,87.49508868]
[1756669868364,0.06,205.12,205.11,86.78508868]
[1756669868566,0.06,205.12,205.11,49.50508868]
[1756669868862,0.06,205.12,205.11,86.78508868]
[1756669870178,0.76,205.12,205.11,86.29754542]
[1756669874088,0.76,205.12,205.11,86.27754542]
[1756669874392,0.76,205.12,205.11,49.01754542]
[1756669887605,0.06,205.12,205.11,49.01754542]
[1756669888789,0.06,205.12,205.11,49.72754542]
[1756669888985,0.06,205.12,205.11,49.01754542]
[1756669891289,0.06,205.12,205.11,49.72754542]
[1756669891604,1e-08,205.12,205.11,50.21508868]
[1756669905726,1e-08,205.12,205.11,49.50508868]
[1756669906726,1e-08,205.12,205.11,50.18508868]
[1756669909022,1e-08,205.12,205.11,49.50508868]
[1756669909232,0.67000001,205.12,205.11,86.25754542]
[1756669911532,0.67000001,205.12,205.11,83.6646757]
[1756669911825,0.67000001,205.12,205.11,86.25754542]
[1756669912013,0.67000001,205.12,205.11,86.28754542]
[1756669912731,0.67000001,205.12,205.11,49.04754542]
[1756669914231,0.67000001,205.12,205.11,20.4546757]
[1756669916408,0.67000001,205.12,205.11,15.57924301]
[1756669916627,0.67000001,205.12,205.11,13.62559401]
[1756669920407,3.26286973,205.12,205.11,13.62559401]
[1756669922236,0.67000001,205.12,205.11,13.62559401]
[1756669925840,8.13806473,205.12,205.11,0.03]
[1756669926626,10.09266873,205.12,205.11,0.03]
[1756669933152,20.46414761,205.12,205.11,1e-08]
[1756669933325,134.4,205.11,205.09,0.03]
[1756669933526,76.2043486,205.1,205.09,0.03]
[1756669933741,76.8843486,205.1,205.09,0.03]
[1756669934452,81.760019,205.1,205.09,0.03]
[1756669936238,55.760019,205.1,205.08,1e-08]
[1756669936448,55.760019,205.1,205.07,0.03]
[1756669936449,28.59286972,205.08,205.07,0.03]
[1756669936838,66.51286972,205.08,205.07,0.03]
[1756669937353,68.46823872,205.08,205.07,0.03]
[1756669938753,70.77151489,205.08,205.07,0.03]
[1756669938974,73.36438461,205.08,205.07,0.03]
[1756669939737,36.10438461,205.08,205.07,0.03]
[1756669939938,73.36438461,205.08,205.07,0.03]
[1756669940135,73.36438461,205.08,205.07,0.7]
[1756669940136,37.26,205.08,205.07,0.7]
[1756669942139,37.26,205.08,205.07,5.57638367]
[1756669942340,37.26,205.08,205.07,0.7]
[1756669942641,37.26,205.08,205.07,0.03]
[1756669942943,37.26,205.08,205.07,0.7]
[1756669944164,41.31153671,205.08,205.07,0.03]
[1756669944370,41.99153671,205.08,205.07,0.03]
[1756669944851,41.31153671,205.08,205.07,0.03]
[1756669945363,37.26,205.08,205.07,0.03]
[1756669952687,41.96153671,205.08,205.07,0.03]
[1756669952870,46.8376826,205.08,205.07,0.03]
[1756669955069,42.78614589,205.08,205.07,0.03]
[1756669955269,41.35153671,205.08,205.07,0.03]
[1756669955468,37.3,205.08,205.07,13.62559401]
[1756669957187,37.3,205.08,205.07,0.69]
[1756669957483,37.3,205.08,205.07,5.5663761]
[1756669958564,37.3,205.08,205.07,19.16197011]
[1756669958891,37.3,205.08,205.07,13.62559401]
[1756669961088,41.35153671,205.08,205.07,13.62559401]
[1756669961286,42.00153671,205.08,205.07,13.62559401]
[1756669962181,37.95,205.08,205.07,13.62559401]
[1756669962887,38.01,205.08,205.07,13.62559401]
[1756669971201,37.36,205.08,205.07,13.62559401]
[1756669972698,38.01,205.08,205.07,13.62559401]
[1756669982108,37.36,205.08,205.07,13.62559401]
[1756669982309,38.03,205.08,205.07,13.62559401]
[1756669984605,42.90614589,205.08,205.07,0.03]
[1756669984990,45.49948039,205.08,205.07,0.03]
[1756669992214,42.90614589,205.08,205.07,0.03]
[1756669992510,47.00011169,205.08,205.07,0.03]
[1756669992695,49.59344619,205.08,205.07,0.03]
[1756669993290,45.49948039,205.08,205.07,0.03]
[1756670003330,8.19948039,205.08,205.07,0.03]
[1756670003534,45.47948039,205.08,205.07,0.03]
[1756670005629,8.19948039,205.08,205.07,0.03]
[1756670005838,45.47948039,205.08,205.07,0.03]
[1756670006533,47.43465739,205.08,205.07,0.03]
[1756670007040,10.15465739,205.08,205.07,0.03]
[1756670007410,47.43465739,205.08,205.07,0.03]
[1756670008437,10.15465739,205.08,205.07,0.03]
[1756670008736,47.43465739,205.08,205.07,0.03]
[1756670015933,51.52600058,205.08,205.07,0.03]
[1756670017128,47.43465739,205.08,205.06,0.03]
[1756670017329,136.9933345,205.07,205.06,0.03]
[1756670017834,144.51537417,205.07,205.06,0.03]
[1756670018332,147.78572702,205.07,205.06,0.03]
[1756670020740,185.04572702,205.07,205.05,0.03]
[1756670020931,9.94885124,205.06,205.05,0.03]
[1756670021332,10.63885124,205.06,205.05,0.03]
[1756670021919,17.47112771,205.06,205.05,0.03]
[1756670022818,54.73112771,205.06,205.05,0.03]
[1756670023538,47.36262932,205.06,205.05,0.03]
[1756670023744,49.95596382,205.06,205.05,0.03]
[1756670026732,50.64596382,205.06,205.05,0.03]
[1756670027647,54.73112771,205.06,205.05,0.03]
[1756670028351,50.64596382,205.06,205.05,0.03]
[1756670028564,49.95596382,205.06,205.05,0.03]
[1756670028731,51.44715405,205.06,205.05,0.03]
[1756670029091,54.04048855,205.06,205.05,0.03]
[1756670030754,54.10048855,205.06,205.05,0.03]
[1756670031739,54.79048855,205.06,205.05,0.03]
[1756670031929,54.10048855,205.06,205.05,0.03]
[1756670034465,50.70596382,205.06,205.05,0.03]
[1756670034760,10.16262932,205.06,205.05,0.03]
[1756670035064,54.10000705,205.06,205.05,0.03]
[1756670035238,50.01596382,205.06,205.05,0.03]
[1756670035567,50.70596382,205.06,205.05,0.03]
[1756670038450,50.70596382,205.06,205.04,0.19459179]
[1756670038664,5.86368735,205.05,205.04,0.19459179]
[1756670039055,6.55368735,205.05,205.04,0.19459179]
[1756670039272,8.50934335,205.05,205.04,0.19459179]
[1756670040150,13.38620265,205.05,205.04,0.19459179]